[Event "Live Chess"]
[Site "Chess.com"]
[Date "2023.05.21"]
[Round "-"]
[White "Bob2pen"]
[Black "wadsy27"]
[Result "0-1"]
[WhiteElo "1828"]
[BlackElo "2545"]
[TimeControl "300"]
[EndTime "7:09:50 PDT"]
[Termination "wadsy27 won by resignation"]

1. c4 {[%clk 0:04:57.3]} 1... e5 {[%clk 0:04:58.5]} 2. g3 {[%clk 0:04:56.5]}
2... h5 {[%clk 0:04:57.5]} 3. Nc3 {[%clk 0:04:54.3]} 3... h4 {[%clk 0:04:56.5]}
4. Bg2 {[%clk 0:04:52.2]} 4... Nf6 {[%clk 0:04:52]} 5. d3 {[%clk 0:04:45.3]}
5... Bc5 {[%clk 0:04:50.4]} 6. Bg5 {[%clk 0:04:42.4]} 6... hxg3 {[%clk
0:04:46.2]} 7. hxg3 {[%clk 0:04:39.5]} 7... Rxh1 {[%clk 0:04:44.3]} 8. Bxh1
{[%clk 0:04:38.1]} 8... Bxf2+ {[%clk 0:04:43.2]} 9. Kxf2 {[%clk 0:04:29.7]} 9...
Ng4+ {[%clk 0:04:41.9]} 10. Ke1 {[%clk 0:04:16.7]} 10... Qxg5 {[%clk 0:04:36.8]}
11. Nf3 {[%clk 0:04:15.2]} 11... Qh6 {[%clk 0:04:34.8]} 12. Bg2 {[%clk
0:04:11.2]} 12... Ne3 {[%clk 0:04:32.4]} 13. Qc1 {[%clk 0:03:59]} 13... Nxg2+
{[%clk 0:04:30.2]} 14. Kf2 {[%clk 0:03:58.1]} 14... Nf4 {[%clk 0:04:17.7]} 15.
gxf4 {[%clk 0:03:54.7]} 15... exf4 {[%clk 0:04:16.9]} 16. Nd5 {[%clk 0:03:49.5]}
16... Na6 {[%clk 0:04:15.9]} 17. Qxf4 {[%clk 0:03:46.9]} 17... Qxf4 {[%clk
0:04:14.5]} 18. Nxf4 {[%clk 0:03:45.6]} 18... Kf8 {[%clk 0:03:59.4]} 19. Rh1
{[%clk 0:03:40.7]} 19... Kg8 {[%clk 0:03:58.5]} 20. Rg1 {[%clk 0:03:23.3]} 20...
d6 {[%clk 0:03:52.1]} 21. Nd5 {[%clk 0:03:14.9]} 21... Be6 {[%clk 0:03:47.3]}
22. Nd4 {[%clk 0:03:07.6]} 22... Bxd5 {[%clk 0:03:42.9]} 23. cxd5 {[%clk
0:03:06.2]} 23... Re8 {[%clk 0:03:40.9]} 24. e4 {[%clk 0:03:04.8]} 24... Nb4
{[%clk 0:03:38.4]} 25. Ke3 {[%clk 0:02:55.8]} 25... Nxd5+ {[%clk 0:03:34.8]} 26.
Kd2 {[%clk 0:02:53.2]} 26... Ne7 {[%clk 0:03:29.5]} 27. Nb5 {[%clk 0:02:50.6]}
27... Rc8 {[%clk 0:03:16.7]} 28. Rc1 {[%clk 0:02:43.7]} 28... Nc6 {[%clk
0:03:12.9]} 29. d4 {[%clk 0:02:27.1]} 29... a6 {[%clk 0:03:11.7]} 30. d5 {[%clk
0:02:23.5]} 30... axb5 {[%clk 0:03:09.4]} 31. dxc6 {[%clk 0:02:22.5]} 31... bxc6
{[%clk 0:03:08.6]} 32. Rxc6 {[%clk 0:02:21.5]} 32... Kf8 {[%clk 0:03:08.3]} 33.
Ke3 {[%clk 0:02:11.8]} 33... Ke7 {[%clk 0:03:07]} 34. Kf4 {[%clk 0:02:09.7]}
34... Kd7 {[%clk 0:03:06.2]} 35. Rc3 {[%clk 0:02:07.7]} 35... Ra8 {[%clk
0:03:05.5]} 36. a3 {[%clk 0:02:06.6]} 36... Ra4 {[%clk 0:03:04.7]} 37. Kf5
{[%clk 0:02:04]} 37... b4 {[%clk 0:03:03.5]} 38. axb4 {[%clk 0:01:55.7]} 38...
Rxb4 {[%clk 0:03:02.9]} 39. Rg3 {[%clk 0:01:54.5]} 39... g6+ {[%clk 0:03:01.3]}
40. Kf6 {[%clk 0:01:53.2]} 40... Rxe4 {[%clk 0:03:00.3]} 41. Kxf7 {[%clk
0:01:52]} 41... Rb4 {[%clk 0:02:59.6]} 42. Rg2 {[%clk 0:01:47.8]} 42... g5
{[%clk 0:02:58.7]} 43. Kf6 {[%clk 0:01:44.5]} 43... g4 {[%clk 0:02:58.1]} 44.
Kf5 {[%clk 0:01:43.6]} 44... d5 {[%clk 0:02:56.9]} 45. Ke5 {[%clk 0:01:41.7]}
45... c6 {[%clk 0:02:53.8]} 46. Rf2 {[%clk 0:01:35]} 46... Re4+ {[%clk
0:02:50.5]} 47. Kf5 {[%clk 0:01:31.7]} 47... Kd6 {[%clk 0:02:50.2]} 48. Rg2
{[%clk 0:01:26.4]} 48... Rb4 {[%clk 0:02:49.3]} 49. Rh2 {[%clk 0:01:23.1]} 49...
g3 {[%clk 0:02:47.7]} 50. Rg2 {[%clk 0:01:21.9]} 50... Rb3 {[%clk 0:02:46.5]}
51. Kf4 {[%clk 0:01:20.7]} 51... c5 {[%clk 0:02:45.2]} 52. Rh2 {[%clk
0:01:17.6]} 52... gxh2 {[%clk 0:02:44.1]} 0-1

[Event "Live Chess"]
[Site "Chess.com"]
[Date "2023.05.21"]
[Round "-"]
[White "Missedidea"]
[Black "LL220284LL"]
[Result "1-0"]
[WhiteElo "1783"]
[BlackElo "2257"]
[TimeControl "300"]
[EndTime "7:09:51 PDT"]
[Termination "Missedidea won by checkmate"]

1. d4 {[%clk 0:04:58]} 1... e6 {[%clk 0:04:59.5]} 2. c4 {[%clk 0:04:55.5]} 2...
Nf6 {[%clk 0:04:57.9]} 3. Nc3 {[%clk 0:04:53.2]} 3... Bb4 {[%clk 0:04:55.8]} 4.
e3 {[%clk 0:04:49.3]} 4... O-O {[%clk 0:04:53.2]} 5. Bd3 {[%clk 0:04:47.9]} 5...
d5 {[%clk 0:04:51.5]} 6. Nf3 {[%clk 0:04:45.2]} 6... b6 {[%clk 0:04:50.4]} 7.
O-O {[%clk 0:04:42.7]} 7... Ba6 {[%clk 0:04:49.1]} 8. cxd5 {[%clk 0:04:39.1]}
8... exd5 {[%clk 0:04:48.2]} 9. Bxa6 {[%clk 0:04:35.6]} 9... Nxa6 {[%clk
0:04:48.1]} 10. Qa4 {[%clk 0:04:30.5]} 10... Qc8 {[%clk 0:04:47.6]} 11. Ne5
{[%clk 0:04:25]} 11... Re8 {[%clk 0:04:39.4]} 12. f4 {[%clk 0:04:21.2]} 12...
Bd6 {[%clk 0:04:33.8]} 13. Rf3 {[%clk 0:04:17.3]} 13... c5 {[%clk 0:04:31.9]}
14. Rg3 {[%clk 0:04:07.8]} 14... Ne4 {[%clk 0:04:27.3]} 15. Nxe4 {[%clk
0:04:05.4]} 15... dxe4 {[%clk 0:04:26.3]} 16. f5 {[%clk 0:03:53.1]} 16... Bxe5
{[%clk 0:04:04.1]} 17. dxe5 {[%clk 0:03:51.2]} 17... Rxe5 {[%clk 0:04:03.2]} 18.
f6 {[%clk 0:03:47.3]} 18... g6 {[%clk 0:04:02.2]} 19. Bd2 {[%clk 0:03:40.9]}
19... Nc7 {[%clk 0:03:57.5]} 20. Bc3 {[%clk 0:03:38.2]} 20... Rd5 {[%clk
0:03:56.4]} 21. Rf1 {[%clk 0:03:33.1]} 21... Qd7 {[%clk 0:03:51]} 22. Qc2 {[%clk
0:03:30]} 22... Rd3 {[%clk 0:03:45.2]} 23. Rg5 {[%clk 0:03:21.1]} 23... Rd8
{[%clk 0:03:39.4]} 24. Re5 {[%clk 0:03:16.1]} 24... Qc6 {[%clk 0:03:36.9]} 25.
Qc1 {[%clk 0:02:58.9]} 25... Nd5 {[%clk 0:03:35]} 26. h4 {[%clk 0:02:53.1]}
26... Nxe3 {[%clk 0:03:33.4]} 27. Re1 {[%clk 0:02:48.8]} 27... Rd1 {[%clk
0:03:32.2]} 28. Qxe3 {[%clk 0:02:43.6]} 28... b5 {[%clk 0:03:21.4]} 29. Rxe4
{[%clk 0:02:28.3]} 29... Rxe1+ {[%clk 0:03:17.1]} 30. Bxe1 {[%clk 0:02:25.5]}
30... Qxf6 {[%clk 0:03:16.1]} 31. Re8+ {[%clk 0:02:22.1]} 31... Kg7 {[%clk
0:03:08.1]} 32. Bc3 {[%clk 0:02:19.7]} 32... Rd4 {[%clk 0:03:07.6]} 33. Bxd4
{[%clk 0:02:11.4]} 33... cxd4 {[%clk 0:03:07.5]} 34. Qd3 {[%clk 0:02:09]} 34...
Qd6 {[%clk 0:03:05.2]} 35. Re4 {[%clk 0:02:05.4]} 35... Qa6 {[%clk 0:03:00.4]}
36. Qxd4+ {[%clk 0:02:03.4]} 36... Kh6 {[%clk 0:03:00.3]} 37. Qe3+ {[%clk
0:02:01.1]} 37... Kg7 {[%clk 0:02:59.7]} 38. Qc3+ {[%clk 0:01:59.4]} 38... Kh6
{[%clk 0:02:59]} 39. g4 {[%clk 0:01:57.1]} 39... Qxa2 {[%clk 0:02:57]} 40. g5+
{[%clk 0:01:54.8]} 40... Kh5 {[%clk 0:02:55.8]} 41. Qf3# {[%clk 0:01:52.4]} 1-0

[Event "Live Chess"]
[Site "Chess.com"]
[Date "2023.05.21"]
[Round "-"]
[White "WelshTiger"]
[Black "DRS44"]
[Result "1-0"]
[WhiteElo "2328"]
[BlackElo "1310"]
[TimeControl "300"]
[EndTime "7:09:54 PDT"]
[Termination "WelshTiger won by resignation"]

1. e4 {[%clk 0:04:59.2]} 1... e5 {[%clk 0:04:52.1]} 2. Nf3 {[%clk 0:04:58]} 2...
d6 {[%clk 0:04:39.8]} 3. d4 {[%clk 0:04:56.8]} 3... f5 {[%clk 0:04:36.3]} 4.
exf5 {[%clk 0:04:44.7]} 4... e4 {[%clk 0:04:29.1]} 5. Nfd2 {[%clk 0:04:39.6]}
5... d5 {[%clk 0:04:24.4]} 6. c4 {[%clk 0:04:28.8]} 6... Nf6 {[%clk 0:04:17.1]}
7. Nc3 {[%clk 0:04:27.6]} 7... c6 {[%clk 0:04:11.8]} 8. f3 {[%clk 0:04:20.3]}
8... e3 {[%clk 0:03:46.6]} 9. Nb3 {[%clk 0:04:15.1]} 9... dxc4 {[%clk
0:02:54.6]} 10. Bxc4 {[%clk 0:04:12.2]} 10... Bxf5 {[%clk 0:02:48]} 11. Bxe3
{[%clk 0:04:10.6]} 11... Qe7 {[%clk 0:02:29.7]} 12. Kf2 {[%clk 0:04:06.4]} 12...
Be6 {[%clk 0:02:22.7]} 13. Bxe6 {[%clk 0:04:02.8]} 13... Qxe6 {[%clk 0:02:16.3]}
14. Re1 {[%clk 0:04:01.9]} 14... Be7 {[%clk 0:02:08.8]} 15. d5 {[%clk
0:03:56.8]} 15... cxd5 {[%clk 0:02:03.1]} 16. Bc5 {[%clk 0:03:56]} 16... Ne4+
{[%clk 0:01:34.8]} 17. Nxe4 {[%clk 0:03:52.7]} 17... dxe4 {[%clk 0:01:30.4]} 18.
Rxe4 {[%clk 0:03:51.1]} 18... Qxe4 {[%clk 0:01:16.3]} 19. fxe4 {[%clk
0:03:49.3]} 1-0

[Event "Live Chess"]
[Site "Chess.com"]
[Date "2023.05.21"]
[Round "-"]
[White "JoRoSaR"]
[Black "sup3rm0nk3y"]
[Result "1-0"]
[WhiteElo "1672"]
[BlackElo "1344"]
[TimeControl "300"]
[EndTime "7:10:04 PDT"]
[Termination "JoRoSaR won by resignation"]

1. e4 {[%clk 0:04:59.8]} 1... c5 {[%clk 0:04:58.6]} 2. Nf3 {[%clk 0:04:57.8]}
2... Nc6 {[%clk 0:04:57.8]} 3. Bb5 {[%clk 0:04:57.4]} 3... a6 {[%clk 0:04:56.5]}
4. Bxc6 {[%clk 0:04:56.7]} 4... bxc6 {[%clk 0:04:55.8]} 5. d3 {[%clk 0:04:56.3]}
5... d5 {[%clk 0:04:54.4]} 6. O-O {[%clk 0:04:54.8]} 6... Nf6 {[%clk 0:04:49.4]}
7. Qe2 {[%clk 0:04:53.4]} 7... Bg4 {[%clk 0:04:41.6]} 8. c4 {[%clk 0:04:51.2]}
8... e6 {[%clk 0:04:37.6]} 9. Nc3 {[%clk 0:04:50.2]} 9... Bd6 {[%clk 0:04:34.3]}
10. b3 {[%clk 0:04:49]} 10... Bc7 {[%clk 0:04:32.7]} 11. Ba3 {[%clk 0:04:44.4]}
11... d4 {[%clk 0:04:12.5]} 12. Na4 {[%clk 0:04:43.2]} 12... O-O {[%clk
0:03:55.5]} 13. Bxc5 {[%clk 0:04:41.8]} 13... Re8 {[%clk 0:03:54]} 14. h3 {[%clk
0:04:38.6]} 14... Bh5 {[%clk 0:03:52.4]} 15. g4 {[%clk 0:04:37.4]} 15... Nxg4
{[%clk 0:03:50.6]} 16. hxg4 {[%clk 0:04:36.3]} 16... Bxg4 {[%clk 0:03:49.6]} 17.
Kg2 {[%clk 0:04:34]} 17... Qh4 {[%clk 0:03:31.7]} 18. Rh1 {[%clk 0:04:32.3]}
18... Bxf3+ {[%clk 0:02:54.9]} 19. Qxf3 {[%clk 0:04:29.9]} 19... Qg5+ {[%clk
0:02:53.7]} 20. Kf1 {[%clk 0:04:28.4]} 20... e5 {[%clk 0:02:32.9]} 21. Ke2
{[%clk 0:03:54.6]} 21... Re6 {[%clk 0:02:23.1]} 22. Rag1 {[%clk 0:03:52.9]}
22... Qd8 {[%clk 0:02:20.6]} 23. Ba3 {[%clk 0:03:50.8]} 23... Rf6 {[%clk
0:02:15.8]} 24. Qg2 {[%clk 0:03:49.7]} 24... Rg6 {[%clk 0:02:13.1]} 25. Qf1
{[%clk 0:03:46.5]} 25... Qf6 {[%clk 0:02:06.2]} 26. Rxg6 {[%clk 0:03:44.6]}
26... Qxg6 {[%clk 0:02:04.7]} 27. Bc1 {[%clk 0:03:43.6]} 27... Ba5 {[%clk
0:01:53.4]} 28. Qh3 {[%clk 0:03:39.5]} 28... h6 {[%clk 0:01:37.6]} 29. f4 {[%clk
0:03:37.6]} 29... exf4 {[%clk 0:01:35.4]} 30. Bxf4 {[%clk 0:03:36.2]} 30... Qf6
{[%clk 0:01:23.4]} 31. Qg3 {[%clk 0:03:33]} 31... Kf8 {[%clk 0:01:10.1]} 32. Rf1
{[%clk 0:03:30.2]} 32... Qe6 {[%clk 0:01:01.5]} 33. Nc5 {[%clk 0:03:24.2]} 33...
Qg6 {[%clk 0:00:50]} 34. Qxg6 {[%clk 0:03:19.8]} 34... fxg6 {[%clk 0:00:49.9]}
35. Bc7+ {[%clk 0:03:18.8]} 1-0

[Event "Live Chess"]
[Site "Chess.com"]
[Date "2023.05.21"]
[Round "-"]
[White "JoeRoot66"]
[Black "lord_cll"]
[Result "1-0"]
[WhiteElo "1901"]
[BlackElo "1209"]
[TimeControl "300"]
[EndTime "7:10:05 PDT"]
[Termination "JoeRoot66 won by resignation"]

1. e4 {[%clk 0:04:57.8]} 1... d5 {[%clk 0:04:56.3]} 2. exd5 {[%clk 0:04:57]}
2... Qxd5 {[%clk 0:04:56.2]} 3. Nc3 {[%clk 0:04:56.2]} 3... Qa5 {[%clk
0:04:54.8]} 4. d4 {[%clk 0:04:56.1]} 4... Nf6 {[%clk 0:04:53]} 5. Bc4 {[%clk
0:04:55.6]} 5... Bf5 {[%clk 0:04:51.6]} 6. Nf3 {[%clk 0:04:53.9]} 6... e6 {[%clk
0:04:50.3]} 7. O-O {[%clk 0:04:50]} 7... c6 {[%clk 0:04:47.8]} 8. Re1 {[%clk
0:04:49.4]} 8... Nbd7 {[%clk 0:04:43.4]} 9. Ne5 {[%clk 0:04:47.9]} 9... Nxe5
{[%clk 0:04:27.6]} 10. Rxe5 {[%clk 0:04:47.8]} 10... Qc7 {[%clk 0:04:18.8]} 11.
Qe2 {[%clk 0:04:33.8]} 11... O-O-O {[%clk 0:04:12.3]} 12. Bf4 {[%clk 0:04:29.4]}
12... Bd6 {[%clk 0:04:09.9]} 13. Rxf5 {[%clk 0:04:17.8]} 13... exf5 {[%clk
0:04:06.3]} 14. Bxd6 {[%clk 0:04:13.4]} 14... Rxd6 {[%clk 0:03:57.6]} 15. d5
{[%clk 0:04:09.9]} 15... Re8 {[%clk 0:03:51.9]} 16. Qf3 {[%clk 0:04:06.7]} 16...
cxd5 {[%clk 0:03:29.7]} 17. Nb5 {[%clk 0:04:00.5]} 17... Qc6 {[%clk 0:03:01.6]}
18. Nxd6+ {[%clk 0:03:57]} 18... Qxd6 {[%clk 0:03:00.3]} 19. Bb5 {[%clk
0:03:53.7]} 19... Re4 {[%clk 0:02:51.4]} 20. Bd3 {[%clk 0:03:49.5]} 20... Rf4
{[%clk 0:02:49]} 21. Bxf5+ {[%clk 0:03:46.3]} 21... Kc7 {[%clk 0:02:42]} 22.
Qc3+ {[%clk 0:03:43.5]} 22... Qc6 {[%clk 0:02:30.8]} 23. Qe5+ {[%clk 0:03:39.7]}
23... Qd6 {[%clk 0:02:27.8]} 24. Qxd6+ {[%clk 0:03:36.2]} 24... Kxd6 {[%clk
0:02:25.7]} 25. Bd3 {[%clk 0:03:36.1]} 25... Ne4 {[%clk 0:02:20]} 26. f3 {[%clk
0:03:32.9]} 26... Nf6 {[%clk 0:02:06.4]} 27. Re1 {[%clk 0:03:29.6]} 27... g5
{[%clk 0:01:56]} 28. h3 {[%clk 0:03:23.2]} 28... h5 {[%clk 0:01:46.3]} 29. Re3
{[%clk 0:03:12.1]} 29... d4 {[%clk 0:01:37.6]} 30. Re2 {[%clk 0:03:05.9]} 30...
g4 {[%clk 0:01:30.9]} 31. hxg4 {[%clk 0:03:04.1]} 31... hxg4 {[%clk 0:01:29.6]}
32. fxg4 {[%clk 0:03:02.8]} 32... Nxg4 {[%clk 0:01:28]} 33. Re4 {[%clk
0:02:59.6]} 33... Rxe4 {[%clk 0:01:18.6]} 34. Bxe4 {[%clk 0:02:59.5]} 34... b6
{[%clk 0:01:15.4]} 35. Bf3 {[%clk 0:02:52.1]} 35... Ne3 {[%clk 0:01:13.7]} 36.
Be4 {[%clk 0:02:49.1]} 36... f5 {[%clk 0:01:11.5]} 37. Bd3 {[%clk 0:02:47.6]}
37... Ke5 {[%clk 0:01:05.4]} 38. Kf2 {[%clk 0:02:45.4]} 38... Kf4 {[%clk
0:01:02.6]} 39. g3+ {[%clk 0:02:43.5]} 39... Ke5 {[%clk 0:00:52.3]} 40. c3
{[%clk 0:01:57.4]} 40... dxc3 {[%clk 0:00:43]} 41. Kxe3 {[%clk 0:01:51.6]} 41...
cxb2 {[%clk 0:00:40.1]} 42. Bb1 {[%clk 0:01:46.5]} 42... a5 {[%clk 0:00:34.4]}
43. a4 {[%clk 0:01:44.2]} 43... Kf6 {[%clk 0:00:24.5]} 44. Kf4 {[%clk
0:01:37.3]} 44... Kg6 {[%clk 0:00:21.1]} 45. Bxf5+ {[%clk 0:01:21]} 45... Kf6
{[%clk 0:00:19.8]} 46. Bb1 {[%clk 0:01:20.9]} 46... Ke6 {[%clk 0:00:17.4]} 47.
g4 {[%clk 0:01:20.8]} 47... Kf7 {[%clk 0:00:16.3]} 48. g5 {[%clk 0:01:20.7]}
48... Kg7 {[%clk 0:00:14.9]} 49. g6 {[%clk 0:01:20.6]} 49... Kf6 {[%clk
0:00:13.3]} 50. Ke4 {[%clk 0:01:18.7]} 50... Kg7 {[%clk 0:00:10.8]} 51. Kd3
{[%clk 0:01:18.6]} 51... Kf6 {[%clk 0:00:09.8]} 52. Kc2 {[%clk 0:01:18.5]} 1-0

[Event "Live Chess"]
[Site "Chess.com"]
[Date "2023.05.21"]
[Round "-"]
[White "NotHarryV"]
[Black "nigelst"]
[Result "0-1"]
[WhiteElo "1516"]
[BlackElo "1701"]
[TimeControl "300"]
[EndTime "7:10:29 PDT"]
[Termination "nigelst won by resignation"]

1. d4 {[%clk 0:04:59.3]} 1... Nf6 {[%clk 0:04:57.6]} 2. c4 {[%clk 0:04:58.8]}
2... e6 {[%clk 0:04:56.8]} 3. Nf3 {[%clk 0:04:56.1]} 3... Bb4+ {[%clk 0:04:56]}
4. Bd2 {[%clk 0:04:53.6]} 4... Qe7 {[%clk 0:04:54.9]} 5. g3 {[%clk 0:04:50.3]}
5... O-O {[%clk 0:04:53.2]} 6. Bg2 {[%clk 0:04:49]} 6... Nc6 {[%clk 0:04:51.2]}
7. O-O {[%clk 0:04:47.5]} 7... Bxd2 {[%clk 0:04:46.6]} 8. Nbxd2 {[%clk
0:04:44.7]} 8... d6 {[%clk 0:04:45.4]} 9. e4 {[%clk 0:04:38.3]} 9... e5 {[%clk
0:04:43.9]} 10. d5 {[%clk 0:04:37.2]} 10... Nb8 {[%clk 0:04:42.5]} 11. Qc2
{[%clk 0:04:29.6]} 11... b6 {[%clk 0:04:37.9]} 12. b4 {[%clk 0:04:24]} 12...
Nbd7 {[%clk 0:04:32.3]} 13. Bh3 {[%clk 0:04:16.7]} 13... Re8 {[%clk 0:04:25.4]}
14. Nh4 {[%clk 0:04:11.7]} 14... Nf8 {[%clk 0:04:22.6]} 15. Bxc8 {[%clk
0:04:09.6]} 15... Raxc8 {[%clk 0:04:20.4]} 16. Nf5 {[%clk 0:04:09.5]} 16... Qd7
{[%clk 0:04:17.8]} 17. Nb3 {[%clk 0:03:59.2]} 17... Ng6 {[%clk 0:04:09.9]} 18.
Qd2 {[%clk 0:03:53.4]} 18... Ne7 {[%clk 0:04:05.3]} 19. Nxe7+ {[%clk 0:03:40.3]}
19... Qxe7 {[%clk 0:04:02.4]} 20. Rae1 {[%clk 0:03:36.6]} 20... Qd7 {[%clk
0:03:58.5]} 21. c5 {[%clk 0:03:32.3]} 21... Qh3 {[%clk 0:03:56]} 22. c6 {[%clk
0:03:00.6]} 22... Ng4 {[%clk 0:03:46]} 23. f3 {[%clk 0:02:59.3]} 23... Nh6
{[%clk 0:03:43.8]} 24. b5 {[%clk 0:02:48.1]} 24... Rf8 {[%clk 0:03:42.1]} 25.
Nc1 {[%clk 0:02:41.5]} 25... f5 {[%clk 0:03:36.8]} 26. exf5 {[%clk 0:02:33.6]}
26... Nxf5 {[%clk 0:03:29.4]} 27. Nd3 {[%clk 0:02:32.5]} 27... Nd4 {[%clk
0:03:27]} 28. a4 {[%clk 0:01:47.8]} 28... Rxf3 {[%clk 0:03:21.4]} 29. Nf2 {[%clk
0:01:42.1]} 29... Qh5 {[%clk 0:03:01.1]} 30. Re3 {[%clk 0:01:05.4]} 30... Rcf8
{[%clk 0:02:55.7]} 31. Rxf3 {[%clk 0:00:57]} 31... Nxf3+ {[%clk 0:02:54.1]} 0-1

[Event "Live Chess"]
[Site "Chess.com"]
[Date "2023.05.21"]
[Round "-"]
[White "LiamClery2020"]
[Black "Vitalii18a"]
[Result "1-0"]
[WhiteElo "1961"]
[BlackElo "1128"]
[TimeControl "300"]
[EndTime "7:10:36 PDT"]
[Termination "LiamClery2020 won by checkmate"]

1. e4 {[%clk 0:04:58.2]} 1... e5 {[%clk 0:04:54.9]} 2. Nc3 {[%clk 0:04:57]} 2...
d6 {[%clk 0:04:53.8]} 3. d4 {[%clk 0:04:56]} 3... exd4 {[%clk 0:04:52.4]} 4.
Qxd4 {[%clk 0:04:55.9]} 4... Be7 {[%clk 0:04:52.3]} 5. Qxg7 {[%clk 0:04:54.4]}
5... Bf6 {[%clk 0:04:48.7]} 6. Qg3 {[%clk 0:04:53.4]} 6... Nc6 {[%clk
0:04:42.5]} 7. Nf3 {[%clk 0:04:51.5]} 7... Nb4 {[%clk 0:04:37.8]} 8. Bd3 {[%clk
0:04:50.4]} 8... Nxd3+ {[%clk 0:04:35.7]} 9. cxd3 {[%clk 0:04:50.3]} 9... Be6
{[%clk 0:04:29.3]} 10. O-O {[%clk 0:04:48.6]} 10... Qe7 {[%clk 0:04:25.5]} 11.
Re1 {[%clk 0:04:46.8]} 11... O-O-O {[%clk 0:04:23.6]} 12. Be3 {[%clk 0:04:43.4]}
12... Kb8 {[%clk 0:04:20.3]} 13. Nd5 {[%clk 0:04:41.5]} 13... Bxd5 {[%clk
0:04:17.8]} 14. exd5 {[%clk 0:04:41.4]} 14... h5 {[%clk 0:04:06.7]} 15. Bxa7+
{[%clk 0:04:39.4]} 15... Kxa7 {[%clk 0:04:03.8]} 16. Rxe7 {[%clk 0:04:39.3]}
16... Bxe7 {[%clk 0:03:57.7]} 17. Qf4 {[%clk 0:04:37.3]} 17... Nh6 {[%clk
0:03:55.7]} 18. Qa4+ {[%clk 0:04:36.1]} 18... Kb8 {[%clk 0:03:54.2]} 19. Nd4
{[%clk 0:04:36]} 19... Bf6 {[%clk 0:03:46]} 20. Nb5 {[%clk 0:04:33.8]} 20... Kc8
{[%clk 0:03:36]} 21. Qa8+ {[%clk 0:04:29.1]} 21... Kd7 {[%clk 0:03:34.6]} 22.
Qxb7 {[%clk 0:04:29]} 22... Bxb2 {[%clk 0:03:31.6]} 23. Qc6+ {[%clk 0:04:27.8]}
23... Ke7 {[%clk 0:03:16.3]} 24. Re1+ {[%clk 0:04:27.7]} 24... Kf6 {[%clk
0:03:11.2]} 25. Qxc7 {[%clk 0:04:21.2]} 25... Be5 {[%clk 0:02:26.9]} 26. d4
{[%clk 0:04:19.7]} 26... Bf4 {[%clk 0:02:17.1]} 27. g3 {[%clk 0:04:17.8]} 27...
Bd2 {[%clk 0:02:12.7]} 28. Re2 {[%clk 0:04:16.8]} 28... Bb4 {[%clk 0:02:08.7]}
29. a3 {[%clk 0:04:15]} 29... Bc3 {[%clk 0:01:45.7]} 30. Nxc3 {[%clk 0:04:13.1]}
30... Nf5 {[%clk 0:01:40.6]} 31. Ne4+ {[%clk 0:04:11.2]} 31... Kg6 {[%clk
0:01:38.3]} 32. f4 {[%clk 0:04:03.8]} 32... Nxd4 {[%clk 0:01:34.7]} 33. Rf2
{[%clk 0:03:59]} 33... Rhe8 {[%clk 0:01:27.9]} 34. Ng5 {[%clk 0:03:54.4]} 34...
Re1+ {[%clk 0:01:24.8]} 35. Kg2 {[%clk 0:03:53.4]} 35... Nf5 {[%clk 0:01:15]}
36. Qxf7+ {[%clk 0:03:51]} 36... Kh6 {[%clk 0:01:09.9]} 37. Qh7# {[%clk
0:03:50.9]} 1-0

[Event "Live Chess"]
[Site "Chess.com"]
[Date "2023.05.21"]
[Round "-"]
[White "stevochess11"]
[Black "NateSolon"]
[Result "0-1"]
[WhiteElo "1674"]
[BlackElo "2642"]
[TimeControl "300"]
[EndTime "7:10:36 PDT"]
[Termination "NateSolon won by resignation"]

1. d4 {[%clk 0:04:52.9]} 1... Nf6 {[%clk 0:04:58.6]} 2. Nf3 {[%clk 0:04:52.5]}
2... c5 {[%clk 0:04:56]} 3. e3 {[%clk 0:04:51.3]} 3... d5 {[%clk 0:04:52.7]} 4.
dxc5 {[%clk 0:04:49.3]} 4... e6 {[%clk 0:04:50.1]} 5. b4 {[%clk 0:04:48]} 5...
a5 {[%clk 0:04:49.2]} 6. c3 {[%clk 0:04:47.5]} 6... axb4 {[%clk 0:04:45.3]} 7.
cxb4 {[%clk 0:04:47.4]} 7... b6 {[%clk 0:04:44.6]} 8. Bb5+ {[%clk 0:04:45.6]}
8... Bd7 {[%clk 0:04:43.2]} 9. Bxd7+ {[%clk 0:04:40.1]} 9... Nbxd7 {[%clk
0:04:43.1]} 10. Bb2 {[%clk 0:04:33.5]} 10... bxc5 {[%clk 0:04:41.5]} 11. bxc5
{[%clk 0:04:32.3]} 11... Bxc5 {[%clk 0:04:37.9]} 12. O-O {[%clk 0:04:32.2]}
12... O-O {[%clk 0:04:36.7]} 13. Ng5 {[%clk 0:04:26.9]} 13... h6 {[%clk
0:04:33.4]} 14. Nf3 {[%clk 0:04:21]} 14... Qb6 {[%clk 0:04:32.2]} 15. Nc3 {[%clk
0:04:13.4]} 15... Qxb2 {[%clk 0:04:30.5]} 0-1

[Event "Live Chess"]
[Site "Chess.com"]
[Date "2023.05.21"]
[Round "-"]
[White "domrobson"]
[Black "CocheseUK"]
[Result "1-0"]
[WhiteElo "1756"]
[BlackElo "1033"]
[TimeControl "300"]
[EndTime "7:10:37 PDT"]
[Termination "domrobson won by resignation"]

1. d4 {[%clk 0:04:59.3]} 1... d5 {[%clk 0:04:57.3]} 2. c4 {[%clk 0:04:58.9]}
2... dxc4 {[%clk 0:04:56.4]} 3. Nf3 {[%clk 0:04:58]} 3... e6 {[%clk 0:04:54.6]}
4. Nc3 {[%clk 0:04:57.5]} 4... Nc6 {[%clk 0:04:49.8]} 5. e3 {[%clk 0:04:54.7]}
5... Bb4 {[%clk 0:04:45.3]} 6. Bxc4 {[%clk 0:04:53.2]} 6... Nf6 {[%clk
0:04:39.1]} 7. O-O {[%clk 0:04:52.6]} 7... O-O {[%clk 0:04:37.2]} 8. Bd3 {[%clk
0:04:51.5]} 8... Ba5 {[%clk 0:04:20.7]} 9. e4 {[%clk 0:04:50.2]} 9... Bb6 {[%clk
0:04:08]} 10. e5 {[%clk 0:04:48.7]} 10... Nd5 {[%clk 0:04:01.8]} 11. Bxh7+
{[%clk 0:04:46.2]} 11... Kxh7 {[%clk 0:03:54.4]} 12. Ng5+ {[%clk 0:04:45.3]}
12... Kg8 {[%clk 0:03:47.5]} 13. Qh5 {[%clk 0:04:43.6]} 1-0